[Event "Coimbra Queima Fitas Open 2024"]
[Site "Coimbra"]
[Date "2024.04.25"]
[Round "1.14"]
[White "Tenreiro, Manuel Costa Dias To"]
[Black "Dias, Ivo Rodrigues"]
[Result "0-1"]
[ECO "B43"]
[WhiteElo "1655"]
[BlackElo "2145"]
[Annotator "TA"]
[PlyCount "72"]
[EventDate "2024.04.23"]
[EventType "swiss"]
[EventCountry "POR"]
[SourceTitle "playchess.com"]
[Source "ChessBase"]
[SourceQuality "1"]
[TimeControl "5400+30"]

{[%evp 12,72,47,19,19,-14,-26,-45,-16,-173,-51,-57,-72,-210,-206,-210,-216,-216,-204,-206,-220,-220,-221,-216,-214,-250,-258,-314,-310,-291,-292,-426,-401,-422,-420,-418,-396,-442,-390,-403,-416,-458,-367,-480,-474,-457,-456,-505,-348,-442,-387,-473,-471,-773,-760,-968,-584,-908,-916,-1008,-996,-1793,-1582]} 1. e4 {[%emt 0:00:07]} c5 {[%emt 0:00:24]} 2. Nf3 {[%emt 0:00:35]} e6 {[%emt 0:00:11]} 3. d4 {[%emt 0:01:06]} cxd4 {[%emt 0:00:10]} 4. Nxd4 {[%emt 0:00:10]} a6 {[%emt 0:00:14]} 5. Nc3 {[%emt 0:03:36]} Qc7 {[%emt 0:00:10]} 6. a3 {[%emt 0:01:03]} b5 {[%emt 0:00:51]} 7. Be2 {[%emt 0:03:28]} Bb7 {[%emt 0:00:43]} 8. f3 {[%emt 0:00:54]} Nf6 {[%emt 0:00:55]} 9. O-O {[%emt 0:00:55]} Bd6 {[%emt 0:00:54] Black is slightly better.} (9... Bc5 $5 10. Kh1 $8 O-O $11) 10. h3 $2 {[%emt 0:13:15] [#]} (10. Kh1 $11 {and White stays safe.} Be7 (10... Bxh2 $2 11. f4 $18) 11. Qe1) 10... Nh5 {[%emt 0:03:47]} ({Better is} 10... Bc5 $1 $19 {Strongly threatening ...Qb6.} 11. Kh1 Nh5) 11. f4 $15 {[%emt 0:12:30]} Nxf4 {[%emt 0:04:49]} 12. Bxf4 {[%emt 0:00:25] Black converts the advantage convincingly.} (12. Bxb5 $17 O-O (12... axb5 13. Ndxb5 Qc5+ 14. Kh1 $16) 13. Be3) 12... Bxf4 $19 {[%emt 0:00:16]} 13. Bf3 {[%emt 0:00:46]} Be5 {[%emt 0:01:13] This pair of bishops is nice.} 14. Nce2 {[%emt 0:05:15]} O-O {[%emt 0:02:09]} 15. Kh1 {[%emt 0:01:55]} d6 {[%emt 0:02:15]} 16. c3 {[%emt 0:01:26]} Nd7 {[%emt 0:00:03][%cal Bb8d7,Bd7b6,Bb6c4,Bc4b2][%mdl 32]} 17. Nb3 {[%emt 0:02:05]} Rad8 {[%emt 0:01:33]} 18. Rc1 {[%emt 0:01:05]} Nb6 {[%emt 0:00:23]} 19. Ned4 {[%emt 0:03:55]} Nc4 {[%emt 0:00:55]} 20. Qe2 {[%emt 0:00:42]} Qe7 {[%emt 0:00:48]} 21. Rfd1 {[%emt 0:03:54]} (21. Qf2 $142) 21... Qh4 {[%emt 0:00:56]} 22. Qe1 {[%emt 0:00:50]} Qf4 {[%emt 0:01:10]} 23. Qg1 {[%emt 0:01:13] Prevents Qh2+} Nxb2 {[%emt 0:00:12]} ({Much less strong is} 23... Bxe4 24. Bxe4 Qxe4 25. Rc2 $19) 24. Rf1 {[%emt 0:00:51]} Qh4 {[%emt 0:01:09][%cal Od8c8]} ({Don't take} 24... Bxe4 25. Na5 $19) 25. Rc2 {[%emt 0:01:40]} Nc4 {[%emt 0:00:15]} 26. Re2 {[%emt 0:01:15]} Bg3 {[%emt 0:05:21]} ({Resist} 26... Nxa3 27. Na5 Rd7 28. Ra1) 27. Ra1 {[%emt 0:01:51]} Ne5 {[%emt 0:00:18] ...Rc8 would now be deadly.} 28. a4 {[%emt 0:01:35]} bxa4 {[%emt 0:01:29]} 29. Rxa4 {[%emt 0:00:48]} Nd3 {[%emt 0:02:10] Hoping for ...Rc8.} 30. Raa2 {[%emt 0:01:05]} g6 {[%emt 0:01:16]} 31. Qe3 {[%emt 0:02:04]} Nf4 {[%emt 0:06:59][%cal Oe6e5] Black is clearly winning.} 32. Red2 {[%emt 0:02:03]} (32. Na5 $142 Nxe2 33. Qxe2) 32... e5 {[%emt 0:01:28]} 33. Nc2 {[%emt 0:02:37]} Ne6 {[%emt 0:04:24]} 34. Qb6 {[%emt 0:02:11]} Rb8 {[%emt 0:01:48]} 35. Qxd6 {[%emt 0:01:36]} Bf4 {[%emt 0:00:25][%cal Oh4g3] [#] White must now prevent ...Qg3!} 36. Re2 {[%emt 0:01:08]} Rbd8 {[%emt 0:00:33] Weighted Error Value: White=0.91/Black=0.38.  Mistake:       	White=4     	Black=1      Inaccurate:     	White=2     	Black=2      OK:         	White=6     	Black=14} 0-1

[Event "Coimbra Queima Fitas Open 2024"]
[Site "Coimbra"]
[Date "2024.04.25"]
[Round "1.15"]
[White "Monteiro, Paulo Alexandre Gome"]
[Black "Cavadas, Jose Manuel"]
[Result "1-0"]
[ECO "E92"]
[WhiteElo "2122"]
[BlackElo "1653"]
[Annotator "RC"]
[PlyCount "73"]
[EventDate "2024.04.23"]
[EventType "swiss"]
[EventCountry "POR"]
[SourceTitle "playchess.com"]
[Source "ChessBase"]
[SourceQuality "1"]
[TimeControl "5400+30"]

1. d4 {[%emt 0:00:08]} Nf6 {[%emt 0:02:38]} 2. c4 {[%emt 0:00:06]} g6 {[%emt 0:00:08]} 3. Nc3 {[%emt 0:00:06]} Bg7 {[%emt 0:00:07]} 4. e4 {[%emt 0:00:06]} d6 {[%emt 0:00:10]} 5. Nf3 {[%emt 0:00:35]} O-O {[%emt 0:00:43]} 6. Be2 {[%emt 0:00:05]} e5 {[%emt 0:01:10]} 7. dxe5 {[%emt 0:00:21]} dxe5 {[%emt 0:00:13]} 8. Qxd8 {[%emt 0:00:07]} Rxd8 {[%emt 0:00:30]} 9. Bg5 {[%emt 0:00:05]} Re8 {[%emt 0:03:42]} 10. O-O-O {[%emt 0:03:41]} c6 {[%emt 0:06:23]} 11. Nxe5 {[%emt 0:07:55]} Nxe4 {[%emt 0:00:30]} 12. Nxe4 {[%emt 0:00:30]} Bxe5 {[%emt 0:18:57]} 13. Rhe1 {[%emt 0:02:13]} Kg7 {[%emt 0:00:30]} 14. Nd6 {[%emt 0:05:00]} Bxd6 {[%emt 0:17:17]} 15. Rxd6 {[%emt 0:00:14]} Nd7 {[%emt 0:07:54]} 16. Be3 {[%emt 0:08:29]} Ne5 {[%emt 0:04:04]} 17. f4 {[%emt 0:05:27]} Nd7 {[%emt 0:01:02]} 18. Bd4+ {[%emt 0:00:30]} Kg8 {[%emt 0:00:30]} 19. Kd2 {[%emt 0:18:30]} Nf8 {[%emt 0:04:21]} 20. g4 {[%emt 0:03:00]} Ne6 {[%emt 0:02:19]} 21. Be3 {[%emt 0:00:20]} c5 {[%emt 0:05:56]} 22. Bf3 {[%emt 0:01:40]} Nd4 {[%emt 0:01:05]} 23. Bxd4 Be6 {[%emt 0:11:12]} 24. Bf6 {[%emt 0:00:53]} Rab8 {[%emt 0:03:48]} 25. Kc3 {[%emt 0:00:18]} b6 {[%emt 0:01:17]} 26. Red1 {[%emt 0:00:14]} a6 {[%emt 0:01:08]} 27. Rd8 {[%emt 0:00:15]} Rexd8 {[%emt 0:03:38]} 28. Rxd8+ {[%emt 0:00:09]} Rxd8 {[%emt 0:00:04]} 29. Bxd8 {[%emt 0:00:07]} b5 {[%emt 0:00:36]} 30. b3 {[%emt 0:00:10]} bxc4 {[%emt 0:00:28]} 31. bxc4 {[%emt 0:00:07]} Bc8 {[%emt 0:01:53]} 32. Be7 {[%emt 0:00:08]} Kg7 {[%emt 0:00:37]} 33. g5 {[%emt 0:00:10]} h5 {[%emt 0:00:33]} 34. Bxc5 f5 {[%emt 0:00:31]} 35. Kd4 {[%emt 0:00:24]} Kh7 {[%emt 0:00:43]} 36. Ke5 a5 37. Kf6 1-0

[Event "Coimbra Queima Fitas Open 2024"]
[Site "Coimbra"]
[Date "2024.04.25"]
[Round "1.16"]
[White "Chipelo, Tomas Miguel Da Silv"]
[Black "Gama, Edivaldo Pereira Da"]
[Result "0-1"]
[ECO "A46"]
[WhiteElo "1652"]
[BlackElo "2109"]
[Annotator "NA RC"]
[PlyCount "62"]
[EventDate "2024.04.23"]
[EventType "swiss"]
[EventCountry "POR"]
[SourceTitle "playchess.com"]
[Source "ChessBase"]
[SourceQuality "1"]
[TimeControl "5400+30"]

1. d4 Nf6 2. Nf3 c5 3. e3 g6 4. b3 Bg7 5. Bb2 O-O 6. Be2 d6 7. O-O cxd4 {A48: 1 d4 Nf6 2 Nf3 g6: Torre, London and Colle Systems.} 8. Nxd4 {The main line 8.Nxd4 scores better than 8.exd4.} Nc6 9. Nd2 Bd7 10. c4 Qb6 11. Nxc6 bxc6 12. Qc2 $146 ({Predecessor:} 12. Bf3 Rfd8 13. Rc1 Be6 14. Qe2 d5 15. e4 d4 16. e5 Nd7 17. c5 Qc7 18. Bxd4 Nxe5 19. Bxe5 Bxe5 {0-1 Vidaurre,L (1860)-Cardenas Serrano,S (2136) San Sebastian de los Reyes op 12th 2010 (2)}) 12... Bf5 13. Bd3 Bxd3 14. Qxd3 Rfd8 15. Rac1 d5 16. cxd5 cxd5 17. Bd4 Qd6 18. Nf3 a5 19. Bc5 Qd7 20. a3 Ne4 21. b4 axb4 22. Bxb4 e6 23. Nd4 Rdc8 24. f3 Nd6 25. Nb3 Nc4 26. Nd2 Ne5 27. Qb3 (27. Qe2 $17 {was necessary.}) 27... Qb5 28. Rxc8+ Rxc8 29. a4 $19 (29. Be7 $17 {is a better defense.} Qe2 30. Rf2) 29... Qa6 30. Bc3 Rxc3 31. Qxc3 Nxf3+ 0-1

[Event "Coimbra Queima Fitas Open 2024"]
[Site "Coimbra"]
[Date "2024.04.25"]
[Round "1.17"]
[White "Novais, Carlos Joao Fernande"]
[Black "Maissa, Susana Flora Cesana"]
[Result "1-0"]
[ECO "B10"]
[WhiteElo "2101"]
[BlackElo "1650"]
[Annotator "TA"]
[PlyCount "86"]
[EventDate "2024.04.23"]
[EventType "swiss"]
[EventCountry "POR"]
[SourceTitle "playchess.com"]
[Source "ChessBase"]
[SourceQuality "1"]
[TimeControl "5400+30"]

{[%evp 10,86,4,5,22,22,12,-29,-4,-24,29,17,26,21,8,0,22,0,14,0,6,0,42,40,24,27,14,9,50,23,42,25,34,20,48,52,43,54,58,59,61,44,79,64,80,59,82,82,82,71,82,62,82,55,82,79,91,97,100,89,87,58,106,106,106,106,122,122,172,138,134,128,259,265,629,191,7247,5916,29993]} 1. c4 {[%emt 0:00:09]} c6 {[%emt 0:01:08]} 2. e4 {[%emt 0:00:10]} d5 {[%emt 0:00:39]} 3. cxd5 {[%emt 0:00:19]} cxd5 {[%emt 0:00:20]} 4. exd5 {[%emt 0:00:08]} Nf6 {[%emt 0:01:48][%cal Bg8f6,Bf6d5,Bd5c3][%mdl 32]} 5. Nc3 {[%emt 0:00:13]} Nxd5 {[%emt 0:03:06]} 6. Bc4 {[%emt 0:01:32]} Nxc3 {[%emt 0:03:09]} 7. Qf3 {[%emt 0:01:31]} e6 {[%emt 0:01:37]} 8. bxc3 {[%emt 0:00:35]} Nc6 {[%emt 0:00:33] Black has an edge.} 9. d4 {[%emt 0:00:43]} Qa5 {[%emt 0:04:26]} (9... Bd6 $142) 10. Ne2 $11 {[%emt 0:03:30][%cal Bg1e2,Be2g3,Bg3e4][%mdl 32]} Bd6 {[%emt 0:02:07]} 11. O-O {[%emt 0:00:50]} O-O {[%emt 0:01:08]} 12. Ng3 {[%emt 0:01:05]} Ne7 {[%emt 0:03:10]} 13. Bd3 {[%emt 0:07:11]} Ng6 {[%emt 0:01:48]} 14. Ne4 {[%emt 0:00:57]} Be7 {[%emt 0:08:41]} 15. Bd2 {[%emt 0:04:13]} Qc7 {[%emt 0:00:18]} 16. Qh5 {[%emt 0:01:54]} Bd7 {[%emt 0:04:55][%cal Bc8d7,Bd7c6,Bc6d5][%mdl 32]} 17. Ng5 {[%emt 0:03:33]} Bxg5 $1 {[%emt 0:03:25]} 18. Qxg5 {[%emt 0:00:36]} Qd8 {[%emt 0:02:12]} 19. Qg3 {[%emt 0:07:00]} Bc6 {[%emt 0:01:13]} 20. Rfe1 {[%emt 0:00:41]} Rc8 {[%emt 0:00:27]} 21. Rac1 {[%emt 0:00:10]} Qh4 {[%emt 0:11:09]} 22. Bxg6 {[%emt 0:02:14]} Qxg3 {[%emt 0:00:33][%csl Gc6][%cal Rg3g2] [#]} 23. Bxf7+ {[%emt 0:00:06]} Rxf7 {[%emt 0:04:29][%cal Bf8f7,Bf7c7,Bc7c4][%mdl 32]} 24. hxg3 {[%emt 0:00:12]} Bd5 {[%emt 0:00:34]} 25. a4 {[%emt 0:02:09]} Rfc7 {[%emt 0:01:35]} 26. Ra1 {[%emt 0:01:54]} Kf7 {[%emt 0:01:22]} 27. f3 {[%emt 0:00:31]} Kf6 {[%emt 0:13:04]} 28. Kf2 {[%emt 0:00:12]} Rc4 {[%emt 0:04:34]} 29. Rh1 {[%emt 0:00:14]} h6 {[%emt 0:00:48]} 30. g4 {[%emt 0:02:42]} Rf8 {[%emt 0:06:51]} 31. Rh5 {[%emt 0:01:06]} Ke7 {[%emt 0:00:44]} 32. Ke3 {[%emt 0:00:57]} Kd6 {[%emt 0:02:51]} 33. Kd3 {[%emt 0:01:02]} b6 {[%emt 0:00:52]} 34. Re5 {[%emt 0:03:40]} Kd7 {[%emt 0:01:15]} 35. g5 {[%emt 0:01:34]} hxg5 {[%emt 0:01:21]} (35... h5 $14 {is superior.}) 36. Rxg5 $16 {[%emt 0:00:09]} Rf7 {[%emt 0:01:23]} 37. Be1 {[%emt 0:00:19]} Ke8 {[%emt 0:01:34]} 38. Bg3 {[%emt 0:00:51]} Rd7 {[%emt 0:02:27]} (38... a6 $16 {was worth a try.} 39. Bd6 b5 40. axb5 axb5) 39. Rh5 {[%emt 0:03:39]} Rf7 {[%emt 0:02:32]} 40. Be5 {[%emt 0:00:14]} Rb7 {[%emt 0:01:21] [#] Loses the game.} (40... Rc6 $16 {was called for.} 41. Rh4 Ke7) 41. Rh8+ $1 $18 {[%emt 0:02:38]} Kf7 $2 {[%emt 0:00:33]} (41... Kd7 42. Rg8 (42. Bxg7 Rbc7 $18) 42... a6 43. Rxg7+ (43. Bxg7 Rbc7 $18) 43... Kc6 44. Rxb7 Kxb7) 42. Rd8 $2 {[%emt 0:00:34]} (42. Rah1 {White wants to mate with R1h7.} Rbc7 43. Bxc7 Rxc7 44. Rb8) 42... g6 $2 {[%emt 0:02:32]} (42... Kg6 43. Rh8 Rf7) 43. Rh1 {[%emt 0:00:49][%cal Rh1h7]} Ke7 {[%emt 0:01:26] Weighted Error Value: White=0.20 (precise) /Black=0.28 (precise) .  Mistake:       	White=1     	Black=6      Inaccurate:     	White=4     	Black=6      OK:         	White=9     	Black=12     Strong:       	White=1     	Black=1} 1-0

[Event "Coimbra Queima Fitas Open 2024"]
[Site "Coimbra"]
[Date "2024.04.25"]
[Round "1.18"]
[White "Guerra, Rui Pedro Oliveira"]
[Black "Vasconcelos, Paulo Jorge Lopes De"]
[Result "0-1"]
[ECO "C74"]
[WhiteElo "1639"]
[BlackElo "2093"]
[Annotator "NA RC"]
[PlyCount "78"]
[EventDate "2024.04.23"]
[EventType "swiss"]
[EventCountry "POR"]
[SourceTitle "playchess.com"]
[Source "ChessBase"]
[SourceQuality "1"]
[TimeControl "5400+30"]

1. e4 {[%emt 0:00:04]} e5 {[%emt 0:00:05]} 2. Nf3 {[%emt 0:00:13]} Nc6 {[%emt 0:00:05]} 3. Bb5 a6 4. Ba4 {[%emt 0:01:04]} d6 {[%emt 0:00:44]} 5. c3 {[%emt 0:00:42]} f5 {[%emt 0:00:05]} 6. d3 {[%emt 0:08:06]} Nf6 {[%emt 0:00:07]} 7. Qe2 {[%emt 0:07:29]} Be7 {[%emt 0:00:08] C74: Ruy Lopez: Deferred Steinitz: 5 c3 f5.} 8. O-O {[%emt 0:02:02]} O-O {[%emt 0:00:27]} 9. Bb3+ {[%emt 0:03:52]} Kh8 {[%emt 0:00:10]} 10. Ng5 {[%emt 0:02:28]} Qe8 {[%emt 0:06:22]} 11. Be6 {[%emt 0:07:26]} (11. Ne6 $11 Bxe6 12. Bxe6) 11... f4 {[%emt 0:06:26]} 12. Bxc8 {[%emt 0:09:47]} Rxc8 {[%emt 0:07:09]} 13. Rd1 {[%emt 0:02:26]} Qg6 {[%emt 0:20:29]} 14. Nf3 {[%emt 0:00:57]} (14. Nh3 $17 {was called for.}) 14... Rce8 {[%emt 0:07:21]} 15. Nh4 {[%emt 0:03:53]} Qf7 {[%emt 0:00:10]} 16. Nf5 {[%emt 0:00:14]} Bd8 {[%emt 0:00:30]} 17. Nd2 {[%emt 0:01:03] [#]} d5 {[%emt 0:00:52]} (17... Ng8 $1 $17 18. g3 Qe6 (18... g6 19. Nh4 $17)) 18. Nf3 {[%emt 0:01:02]} g6 {[%emt 0:00:57]} 19. Ng5 {[%emt 0:01:40]} Qg8 {[%emt 0:01:51]} 20. Nh6 {[%emt 0:13:38]} Qg7 {[%emt 0:00:07]} 21. Ng4 {[%emt 0:00:10]} Qd7 {[%emt 0:04:34]} 22. Nxf6 {[%emt 0:06:22]} Bxf6 {[%emt 0:00:09]} 23. Nf3 $15 {[%emt 0:00:08]} g5 {[%emt 0:00:44]} 24. exd5 {[%emt 0:00:43]} Qxd5 {[%emt 0:00:16]} 25. Qe4 {[%emt 0:00:11]} (25. Nd2 $1 $11 {keeps the balance.}) 25... Qd7 {[%emt 0:02:49]} (25... Rd8 $17 26. Rd2 Qxe4 27. dxe4 g4) 26. b3 {[%emt 0:06:38]} g4 {[%emt 0:10:41]} 27. Nd2 {[%emt 0:02:14]} Rg8 {[%emt 0:11:11]} 28. Bb2 {[%emt 0:00:26]} h5 {[%emt 0:01:00]} 29. d4 {[%emt 0:07:11]} exd4 {[%emt 0:00:38]} 30. Qxf4 {[%emt 0:00:07]} Bg5 {[%emt 0:01:38]} 31. Qg3 {[%emt 0:01:12]} d3 {[%emt 0:04:51]} 32. c4+ {[%emt 0:00:41]} Kh7 {[%emt 0:00:25]} 33. Nf1 {[%emt 0:02:18]} Rd8 {[%emt 0:01:38]} 34. Ne3 {[%emt 0:03:45]} Nd4 {[%emt 0:10:50]} 35. Bxd4 {[%emt 0:00:56]} Qxd4 {[%emt 0:00:05]} 36. Qxc7+ {[%emt 0:00:06]} Rd7 {[%emt 0:00:21]} 37. Qa5 {[%emt 0:00:48]} Bxe3 {[%emt 0:00:09]} 38. Qxh5+ {[%emt 0:00:10]} Bh6 {[%emt 0:00:11]} 39. Qf5+ {[%emt 0:00:32]} Kh8 {[%emt 0:00:23]} 0-1

[Event "Coimbra Queima Fitas Open 2024"]
[Site "Coimbra"]
[Date "2024.04.25"]
[Round "2.1"]
[White "Duque, Raquel Dos Santos"]
[Black "Sousa, Andre Miguel Vale Ve"]
[Result "0-1"]
[ECO "A13"]
[WhiteElo "1870"]
[BlackElo "2426"]
[Annotator "TA"]
[PlyCount "64"]
[EventDate "2024.04.23"]
[EventType "swiss"]
[EventCountry "POR"]
[SourceTitle "playchess.com"]
[Source "ChessBase"]
[SourceQuality "1"]
[TimeControl "5400+30"]

{[%evp 9,64,0,8,0,0,0,0,0,0,0,0,-22,-20,-30,-20,-40,0,0,-8,-12,-11,-12,0,0,0,0,0,0,0,0,0,-83,-61,-103,-97,-138,-80,-58,-71,-79,-79,-63,-86,-98,-92,-138,-89,-75,-89,-93,-82,-195,-185,-194,-177,-252,-234]} 1. c4 e6 2. Nc3 d5 3. e3 Nf6 4. Nf3 Bd6 5. b3 O-O 6. Be2 Nbd7 7. O-O a6 8. d4 {The position is equal.} b6 9. Qc2 Bb7 10. Bd3 dxc4 11. bxc4 c5 12. Ba3 Qe7 13. Ne4 Bxe4 14. Bxe4 Nxe4 15. Qxe4 cxd4 16. Bxd6 Qxd6 17. exd4 Rac8 18. Rac1 Rc7 19. Rfd1 Rfc8 20. c5 Qc6 21. Qh4 h6 22. Qh5 Qd5 ({Black should try} 22... Qa4 {[%cal Rb6c5]} 23. Ne5 Nxe5 (23... Qxa2 $2 {too greedy.} 24. Qxf7+ Kh8 25. Nxd7 $18) 24. Qxe5 bxc5 (24... Qxa2 25. Ra1 $11) 25. dxc5 Qa5 (25... Qxa2 26. g3 $15) (25... Rxc5 26. Qxc5 $15)) 23. Qxd5 $17 exd5 24. Rb1 bxc5 25. dxc5 Rxc5 26. h3 Nf6 27. Rb7 (27. Nd4 $142) 27... Rc1 (27... Rc2 $142 28. a3 Ra2) 28. Rxc1 Rxc1+ 29. Kh2 Rc2 {[%csl LRa2,LRf2]} 30. Ne5 (30. a4 $17) 30... Rxf2 $19 (30... Rxa2 31. f4) 31. Rb8+ Kh7 32. Nxf7 (32. a4 {was called for.}) 32... Rxa2 {Weighted Error Value: White=0.24 (precise) /Black=0.10 (very precise) .  Mistake:       	White=4     	Black=2      Inaccurate:     	White=2     	Black=1      OK:         	White=7     	Black=9      Best:        	White=2     	Black=2} 0-1

[Event "Coimbra Queima Fitas Open 2024"]
[Site "Coimbra"]
[Date "2024.04.25"]
[Round "2.2"]
[White "Veiga, Jose Francisco R P N"]
[Black "Goncalves, Diogo Figueiredo"]
[Result "1-0"]
[ECO "B40"]
[WhiteElo "2378"]
[BlackElo "1864"]
[Annotator "TA"]
[PlyCount "57"]
[EventDate "2024.04.23"]
[EventType "swiss"]
[EventCountry "POR"]
[SourceTitle "playchess.com"]
[Source "ChessBase"]
[SourceQuality "1"]
[TimeControl "5400+30"]

{[%evp 18,57,70,58,89,46,89,74,94,87,101,102,90,92,87,99,98,98,158,123,174,97,148,113,146,118,122,121,175,87,285,89,479,339,334,329,334,323,566,575,572,527]} 1. e4 {[%emt 0:02:06]} c5 {[%emt 0:00:33]} 2. Nf3 {[%emt 0:00:09]} e6 {[%emt 0:00:10]} 3. c3 {[%emt 0:01:18]} Nf6 {[%emt 0:00:24]} 4. e5 {[%emt 0:02:43]} Nd5 {[%emt 0:00:29]} 5. d4 {[%emt 0:00:41]} cxd4 {[%emt 0:00:24]} 6. cxd4 {[%emt 0:00:22]} d6 {[%emt 0:00:11]} 7. Bd3 {[%emt 0:01:01]} Be7 {[%emt 0:01:41]} 8. O-O {[%emt 0:00:00]} O-O {[%emt 0:02:09]} 9. Nc3 {[%emt 0:00:20]} Nxc3 {[%emt 0:03:42]} 10. bxc3 {[%emt 0:00:38]} Qc7 {[%emt 0:03:45]} 11. exd6 {[%emt 0:05:35]} Qxd6 {[%emt 0:11:18]} 12. Re1 {[%emt 0:01:12]} Nd7 {[%emt 0:01:04] White is better.} 13. Ng5 {[%emt 0:06:43]} Nf6 {[%emt 0:03:22] [#]} 14. Qf3 $1 {[%emt 0:00:24]} h6 {[%emt 0:06:48]} 15. Ne4 {[%emt 0:00:31] White is much more active. The black rooks are passive.} Nxe4 {[%emt 0:00:31]} 16. Qxe4 {[%emt 0:00:23]} f5 {[%emt 0:00:11]} 17. Qf3 {[%emt 0:01:55]} g5 {[%emt 0:16:04] Prevents Bf4} (17... Qc7 $142) 18. Bc4 {[%emt 0:04:21]} Rf6 {[%emt 0:02:26] [#]} (18... Kg7 $16 {was worth a try.} 19. Rb1 g4) 19. Bd2 {[%emt 0:02:52]} (19. h4 $1 $18 Qc7 20. Bb3 (20. hxg5 hxg5 21. Qh5 Qxc4 $18)) 19... Kg7 {[%emt 0:07:44]} ({Black should play} 19... Qc6 20. Qd3 Bf8) 20. Re2 {[%emt 0:00:46]} Rb8 {[%emt 0:04:19]} 21. Rae1 {[%emt 0:01:20]} b5 {[%emt 0:01:34]} 22. Bb3 {[%emt 0:00:03][%cal Oh2h4]} Bb7 {[%emt 0:02:41]} (22... a5 $16 {was called for.}) 23. Qg3 {[%emt 0:02:29]} (23. Qh5 $18 {[%cal Re2e6] has better winning chances.} Be4 24. h4) 23... f4 $2 {[%emt 0:16:58]} (23... Qxg3 $16 24. hxg3 Be4) 24. Qh3 $2 {[%emt 0:00:45]} (24. Qg4 $18 {is more deadly.}) 24... g4 $2 {[%emt 0:02:32][%mdl 8192]} 25. Qd3 {[%emt 0:00:10][%cal Re2e6]} Bd5 {[%emt 0:00:50]} 26. Re5 {[%emt 0:01:43] Bxd5 would now be deadly.} Bxb3 {[%emt 0:01:25]} 27. axb3 {[%emt 0:00:01]} g3 $2 {[%emt 0:03:57]} (27... Rb6 28. g3 (28. Rxb5 g3 $18) 28... Qd7) 28. hxg3 $18 {[%emt 0:00:55]} fxg3 {[%emt 0:00:05]} 29. Qxg3+ {[%emt 0:00:34] Weighted Error Value: White=0.44/Black=0.66.  Loses game:     	---       	Black=2      Missed win:     	White=1     	---        Mistake:       	White=2     	Black=5      Inaccurate:     	White=1     	Black=1      OK:         	White=5     	Black=4      Best:        	---       	Black=2      Strong:       	White=1     	---} (29. Rxb5 $2 {loses.} gxf2+ 30. Kf1 Qh2 $19 (30... fxe1=R+ $2 31. Kxe1 Rxb5 32. Qxb5 $19)) 1-0